fUST/lending_fUST_20240929
["ID","MTS","AMOUNT","RATE_DAILY","PERIOD"]
[339407985,1727591439539,-500.0,0.00014779,2]
[339407986,1727591439548,-500.0,0.00014779,2]
[339407987,1727591439558,-500.0,0.00014779,2]
[339407988,1727591439568,-500.0,0.00014779,2]
[339407989,1727591439578,-500.0,0.00014779,2]
[339407990,1727591439587,-500.0,0.00014779,2]
[339407991,1727591439597,-500.0,0.00014779,2]
[339407992,1727591439607,-500.0,0.00014779,2]
[339407993,1727591439618,-500.0,0.00014779,2]
[339407996,1727591439628,-500.0,0.00014779,2]
[339407998,1727591439637,-2193.67724821,0.00014781,2]
[339407999,1727591439646,-207642.682719,0.0001487,2]
[339408000,1727591439655,-7674.95075003,0.0001487,2]
[339408002,1727591439665,-500.0,0.000149,2]
[339408004,1727591439674,-500.0,0.000149,2]
[339408006,1727591439683,-150.112233,0.000149,2]
[339408008,1727591439692,-150.112233,0.000149,2]
[339408009,1727591439701,-1000.0,0.00015,2]
[339408010,1727591439711,-150.112233,0.00015,2]
[339408011,1727591439720,-5000.0,0.00015,2]
[339408012,1727591439729,-878.084257,0.00015068,2]
[339408013,1727591439739,-153.0,0.00015068,2]
[339408015,1727591439748,-153.0,0.00015068,2]
[339408017,1727591439759,-153.0,0.00015068,2]
[339408018,1727591439769,-153.0,0.00015068,2]
[339408019,1727591439778,-500.0,0.00015084,2]
[339408020,1727591439788,-500.0,0.00015084,2]
[339408021,1727591439797,-326.21112364,0.00015084,2]
[339408022,1727591439809,-150.112233,0.000151,2]
[339408023,1727591439818,-540.51835315,0.00015146,2]
[339408024,1727591439828,-500.0,0.00015162,7]
[339408025,1727591439837,-500.0,0.00015162,7]
[339408026,1727591439847,-500.0,0.00015162,7]
[339408028,1727591439856,-500.0,0.00015162,7]
[339408029,1727591439867,-500.0,0.00015162,7]
[339408030,1727591439877,-500.0,0.00015162,7]
[339408031,1727591439887,-500.0,0.00015162,7]
[339408032,1727591439897,-500.0,0.00015162,7]
[339408034,1727591439907,-500.0,0.00015162,7]
[339408035,1727591439916,-500.0,0.00015162,7]
[339408036,1727591439926,-341.46,0.00015162,7]
[339408037,1727591439935,-153.0,0.00015178,2]
[339408038,1727591439945,-150.112233,0.000152,2]
[339408039,1727591439955,-150.112233,0.000153,2]
[339408040,1727591439965,-750.0,0.00015342,2]
[339408041,1727591439976,-179.5138991,0.00015391,2]
[339408042,1727591439986,-150.112233,0.000154,2]
[339408043,1727591439996,-150.112233,0.000154,2]
[339408044,1727591440006,-1000.0,0.00015448,2]
[339408045,1727591440016,-1056.47267353,0.00015448,2]
[339408046,1727591440026,-153.0,0.00015478,2]
[339408047,1727591440036,-150.112233,0.000155,2]
[339408048,1727591440046,-5310.34003558,0.00015509,2]
[339408049,1727591440055,-155.5973704,0.00015522,2]
[339408050,1727591440065,-179.5138991,0.00015541,2]
[339408051,1727591440074,-2079.69633671,0.00015565,2]
[339408052,1727591440084,-420.0,0.00015595,2]
[339408053,1727591440094,-499.85890053,0.000156,2]
[339408054,1727591440104,-150.112233,0.000156,2]
[339408055,1727591440113,-420.0,0.00015662,2]
[339408056,1727591440123,-115042.39415603,0.00015665,2]
[339408057,1727591440413,-500.0,0.00014779,2]
[339408058,1727591440423,-500.0,0.00014779,2]
[339408059,1727591440433,-500.0,0.00014779,2]
[339408060,1727591440443,-617.69992655,0.00014779,2]
[339408061,1727591440452,-500.0,0.00014779,2]
[339408062,1727591440463,-500.0,0.00014779,2]
[339408063,1727591440472,-500.0,0.00014779,2]
[339408064,1727591440482,-500.0,0.00014779,2]
[339408065,1727591440493,-500.0,0.00014779,2]
[339408066,1727591440503,-500.0,0.00014779,2]
[339408067,1727591440513,-500.0,0.00014779,2]
[339408068,1727591440522,-500.0,0.00014779,2]
[339408069,1727591440532,-500.0,0.00014779,2]
[339408070,1727591440541,-500.0,0.00014779,2]
[339408071,1727591440551,-500.0,0.00014779,2]
[339408072,1727591440562,-500.0,0.00014779,2]
[339408073,1727591440572,-500.0,0.00014779,2]
[339408074,1727591440582,-500.0,0.00014779,2]
[339408075,1727591440591,-300242.97128197,0.00015665,2]
[339408076,1727591440601,-38374.7537501,0.00015665,2]
[339408077,1727591440610,-500.0,0.00015673,2]
[339408078,1727591440621,-500.0,0.00015673,2]
[339408079,1727591440631,-500.0,0.00015673,2]
[339408080,1727591440641,-500.0,0.00015673,2]
[339408081,1727591440651,-500.0,0.00015673,2]
[339408082,1727591440660,-500.0,0.00015673,2]
[339408083,1727591440670,-500.0,0.00015673,2]
[339408084,1727591440680,-500.0,0.00015673,2]
[339408085,1727591440689,-500.0,0.00015673,2]
[339408086,1727591440699,-500.0,0.00015673,2]
[339408087,1727591440801,-239525.12565805,0.00015675,2]
[339408088,1727591440822,-15349.9015001,0.00015679,2]
[339408089,1727591440832,-15349.9015001,0.0001568,2]
[339408090,1727591440841,-1000.0,0.0001568,2]
[339408091,1727591440851,-88888.0,0.00015689,2]
[339408092,1727591440860,-179.5138991,0.0001569,2]
[339408093,1727591440871,-198.0,0.0001569,2]
[339408094,1727591440880,-82593.68858736,0.0001569,2]
[339408095,1727591440890,-500.0,0.00015773,2]
[339408096,1727591440900,-500.0,0.00015773,2]
[339408097,1727591440910,-500.0,0.00015773,2]
[339408098,1727591440919,-251.06641717,0.00015773,2]
[339408099,1727591440929,-545.58036686,0.00015773,2]
[339408100,1727591440939,-500.0,0.00015773,2]
[339408101,1727591440951,-500.0,0.00015773,2]
[339408102,1727591440962,-500.0,0.00015773,2]
[339408103,1727591440973,-291.33095537,0.00015773,2]
[339408104,1727591440983,-501.93244549,0.00015773,2]
[339408105,1727591440992,-500.0,0.00015773,2]
[339408106,1727591441002,-500.0,0.00015773,2]
[339408107,1727591441011,-500.0,0.00015773,2]
[339408108,1727591441021,-30699.8030001,0.0001578,2]
[339408109,1727591441030,-500.0,0.00015789,2]
[339408110,1727591441040,-2000.0,0.0001579,2]
[339408111,1727591441050,-2000.0,0.0001579,2]
[339408112,1727591441059,-2022.48948,0.0001579,2]
[339408113,1727591441069,-7674.95075003,0.0001579,2]
[339408114,1727591441078,-195.978247,0.0001579,2]
[339408115,1727591441088,-195.978247,0.0001579,2]
[339408116,1727591441098,-195.978247,0.0001579,2]
[339408117,1727591441109,-195.978247,0.0001579,2]
[339408118,1727591441120,-320.769279,0.0001579,2]
[339408119,1727591441130,-320.769279,0.0001579,2]
[339408120,1727591441139,-320.769279,0.0001579,2]
[339408121,1727591441150,-320.769279,0.0001579,2]
[339408122,1727591441159,-509.941247,0.0001579,2]
[339408123,1727591441170,-509.941247,0.0001579,2]
[339408124,1727591441179,-509.941247,0.0001579,2]
[339408125,1727591441190,-509.941247,0.0001579,2]
[339408126,1727591441200,-151.0,0.0001579,2]
[339408127,1727591441211,-151.0,0.0001579,2]
[339408128,1727591441224,-791.7249,0.0001579,2]
[339408129,1727591441235,-791.7249,0.0001579,2]
[339408130,1727591441246,-791.7249,0.0001579,2]
[339408131,1727591441256,-791.7249,0.0001579,2]
[339408132,1727591441266,-5000.0,0.00015799,2]
[339408133,1727591441277,-150.112233,0.000158,2]
[339408134,1727591441288,-150.112233,0.000158,2]
[339408135,1727591441299,-150.112233,0.000158,2]
[339408136,1727591441311,-150.112233,0.000158,2]
[339408137,1727591441323,-150.112233,0.000158,2]
[339408138,1727591441334,-150.112233,0.000158,2]
[339408139,1727591441343,-150.112233,0.000158,2]
[339408140,1727591441352,-150.112233,0.000158,2]
[339408141,1727591441363,-150.112233,0.000158,2]
[339408142,1727591441373,-150.112233,0.000158,2]
[339408143,1727591441382,-150.112233,0.000158,2]
[339408144,1727591441393,-150.112233,0.000158,2]
[339408145,1727591441403,-150.112233,0.000158,2]
[339408146,1727591441414,-150.112233,0.000158,2]
[339408147,1727591441424,-150.112233,0.000158,2]
[339408148,1727591441435,-150.112233,0.000158,2]
[339408149,1727591441446,-150.112233,0.000158,2]
[339408150,1727591441457,-150.112233,0.000158,2]
[339408151,1727591441466,-69193.24689411,0.000158,2]
[339408152,1727591441478,-7674.95075003,0.00015807,2]
[339408153,1727591441494,-15349.9015001,0.00015815,2]
[339408154,1727591441503,-1000.0,0.00015817,2]
[339408155,1727591441513,-813.55601831,0.00015817,2]
[339408156,1727591441524,-151.0,0.00015817,2]
[339408157,1727591441535,-373.866433,0.00015817,2]
[339408158,1727591441545,-151.0,0.00015817,2]
[339408159,1727591441555,-151.0,0.00015817,2]
[339408160,1727591441565,-373.866433,0.00015817,2]
[339408161,1727591441575,-7674.95075003,0.00015823,2]
[339408162,1727591441587,-7674.95075003,0.00015823,2]
[339408163,1727591441598,-151.0,0.00015825,2]
[339408164,1727591441609,-151.0,0.00015825,2]
[339408165,1727591441622,-157.532789,0.00015825,2]
[339408166,1727591441632,-582.520337,0.00015825,2]
[339408167,1727591441642,-582.520337,0.00015825,2]
[339408168,1727591441652,-151.0,0.00015825,2]
[339408169,1727591441663,-151.0,0.00015825,2]
[339408170,1727591441673,-151.0,0.00015825,2]
[339408171,1727591441684,-1554.559813,0.00015825,2]
[339408172,1727591441694,-151.0,0.00015825,2]
[339408173,1727591441705,-1554.559813,0.00015825,2]
[339408174,1727591441716,-2170.578063,0.00015825,2]
[339408175,1727591441727,-2170.578063,0.00015825,2]
[339408176,1727591441737,-535.864098,0.00015825,2]
[339408177,1727591441749,-535.864098,0.00015825,2]
[339408178,1727591441759,-336.751948,0.00015825,2]
[339408179,1727591441770,-336.751948,0.00015825,2]
[339408180,1727591441782,-163.901355,0.00015825,2]
[339408181,1727591441794,-163.901355,0.00015825,2]
[339408182,1727591441804,-242.800411,0.00015825,2]
[339408183,1727591441815,-242.800411,0.00015825,2]
[339408184,1727591441827,-3300.014757,0.00015825,2]
[339408185,1727591441838,-3300.014757,0.00015825,2]
[339408186,1727591441849,-1378.113569,0.00015825,2]
[339408187,1727591441859,-1378.113569,0.00015825,2]
[339408188,1727591441870,-374.682797,0.00015825,2]
[339408189,1727591441880,-374.682797,0.00015825,2]
[339408190,1727591441889,-195.978247,0.00015825,2]
[339408191,1727591441898,-195.978247,0.00015825,2]
[339408192,1727591441908,-320.769279,0.00015825,2]
[339408193,1727591441919,-320.769279,0.00015825,2]
[339408194,1727591441929,-1716.531087,0.00015825,2]
[339408195,1727591441941,-1716.531087,0.00015825,2]
[339408196,1727591441952,-509.941247,0.00015825,2]
[339408197,1727591441963,-509.941247,0.00015825,2]
[339408198,1727591441973,-151.0,0.00015825,2]
[339408199,1727591441984,-791.7249,0.00015825,2]
[339408200,1727591441993,-791.7249,0.00015825,2]
[339408201,1727591442004,-791.7249,0.00015825,2]
[339408202,1727591442015,-791.7249,0.00015825,2]
[339408203,1727591442024,-151.0,0.00015827,2]
[339408204,1727591442035,-151.0,0.00015827,2]
[339408205,1727591442046,-30000.0,0.00015828,2]
[339408206,1727591442057,-374.682797,0.00015828,2]
[339408207,1727591442067,-374.682797,0.00015828,2]
[339408208,1727591442079,-195.978247,0.00015828,2]
[339408209,1727591442091,-195.978247,0.00015828,2]
[339408210,1727591442102,-320.769279,0.00015828,2]
[339408211,1727591442114,-320.769279,0.00015828,2]
[339408212,1727591442126,-509.941247,0.00015828,2]
[339408213,1727591442137,-509.941247,0.00015828,2]
[339408214,1727591442147,-151.0,0.00015828,2]
[339408215,1727591442158,-791.7249,0.00015828,2]
[339408216,1727591442167,-791.7249,0.00015828,2]
[339408217,1727591442177,-152.05263,0.00015833,2]
[339408218,1727591442186,-1623.741257,0.00015833,2]
[339408219,1727591442196,-1623.741257,0.00015833,2]
[339408220,1727591442206,-151.0,0.00015833,2]
[339408221,1727591442215,-4095.092709,0.00015833,2]
[339408222,1727591442224,-4095.092709,0.00015833,2]
[339408223,1727591442234,-151.0,0.00015833,2]
[339408224,1727591442245,-151.0,0.00015833,2]
[339408225,1727591442255,-230.467734,0.00015833,2]
[339408226,1727591442267,-230.467734,0.00015833,2]
[339408227,1727591442279,-374.682797,0.00015833,2]
[339408228,1727591442288,-374.682797,0.00015833,2]
[339408229,1727591442298,-195.978247,0.00015833,2]
[339408230,1727591442309,-195.978247,0.00015833,2]
[339408231,1727591442320,-320.769279,0.00015833,2]
[339408232,1727591442332,-320.769279,0.00015833,2]
[339408233,1727591442343,-1393.463648,0.00015833,2]
[339408234,1727591442354,-509.941247,0.00015833,2]
[339408235,1727591442365,-1393.463648,0.00015833,2]
[339408236,1727591442376,-509.941247,0.00015833,2]
[339408237,1727591442387,-151.0,0.00015833,2]
[339408238,1727591442396,-791.7249,0.00015833,2]
[339408239,1727591442407,-791.7249,0.00015833,2]
[339408240,1727591442419,-151.0,0.00015835,2]
[339408241,1727591442431,-151.8524,0.00015835,2]
[339408242,1727591442440,-151.0,0.00015835,2]
[339408243,1727591442451,-151.888777,0.00015835,2]
[339408244,1727591442461,-170.162374,0.00015835,2]
[339408245,1727591442472,-170.162374,0.00015835,2]
[339408246,1727591442582,-683.406429,0.00015835,2]
[339408247,1727591442592,-683.406429,0.00015835,2]
[339408248,1727591442602,-151.0,0.00015835,2]
[339408249,1727591442613,-151.0,0.00015835,2]
[339408250,1727591442622,-847.825403,0.00015835,2]
[339408251,1727591442634,-847.825403,0.00015835,2]
[339408252,1727591442643,-1623.741257,0.00015835,2]
[339408253,1727591442653,-1623.741257,0.00015835,2]
[339408254,1727591442662,-151.0,0.00015835,2]
[339408255,1727591442671,-4095.092709,0.00015835,2]
[339408256,1727591442685,-4095.092709,0.00015835,2]
[339408257,1727591442695,-230.467734,0.00015835,2]
[339408258,1727591442705,-230.467734,0.00015835,2]
[339408259,1727591442714,-374.682797,0.00015835,2]
[339408260,1727591442724,-374.682797,0.00015835,2]
[339408261,1727591442734,-195.978247,0.00015835,2]
[339408262,1727591442743,-195.978247,0.00015835,2]
[339408263,1727591442752,-320.769279,0.00015835,2]
[339408264,1727591442761,-320.769279,0.00015835,2]
[339408265,1727591442771,-1393.463648,0.00015835,2]
[339408266,1727591442780,-509.941247,0.00015835,2]
[339408267,1727591442789,-1393.463648,0.00015835,2]
[339408268,1727591442799,-509.941247,0.00015835,2]
[339408269,1727591442812,-151.0,0.00015835,2]
[339408270,1727591442822,-791.7249,0.00015835,2]
[339408271,1727591442831,-791.7249,0.00015835,2]
[339408272,1727591442841,-28220.60892337,0.00015835,2]
[339408273,1727591442850,-151.0,0.00015837,2]
[339408274,1727591442859,-151.0,0.00015837,2]
[339408275,1727591442870,-151.0,0.00015837,2]
[339408276,1727591442879,-151.462988,0.00015837,2]
[339408277,1727591442889,-427.98467394,0.00015837,2]
[339408278,1727591442898,-203.242891,0.00015843,2]
[339408279,1727591442908,-151.0,0.00015843,2]
[339408280,1727591442917,-170.162374,0.00015843,2]
[339408281,1727591442927,-170.162374,0.00015843,2]
[339408282,1727591442936,-683.406429,0.00015843,2]
[339408283,1727591442946,-683.406429,0.00015843,2]
[339408284,1727591442955,-151.0,0.00015843,2]
[339408286,1727591442965,-151.0,0.00015843,2]
[339408288,1727591442975,-847.825403,0.00015843,2]
[339408289,1727591442985,-847.825403,0.00015843,2]
[339408290,1727591442997,-151.0,0.00015848,2]
[339408291,1727591443007,-196.872921,0.00015848,2]
[339408292,1727591443018,-196.872921,0.00015848,2]
[339408293,1727591443028,-382.095382,0.00015848,2]
[339408294,1727591443039,-382.095382,0.00015848,2]
[339408295,1727591443049,-190.956157,0.00015848,2]
[339408296,1727591443061,-190.956157,0.00015848,2]
[339408297,1727591443072,-151.0,0.00015848,2]
[339408298,1727591443084,-151.0,0.00015848,2]
[339408299,1727591443095,-382.688678,0.00015848,2]
[339408300,1727591443107,-382.688678,0.00015848,2]
[339408301,1727591443118,-175.40141,0.00015848,2]
[339408302,1727591443129,-151.0,0.00015848,2]
[339408303,1727591443140,-175.40141,0.00015848,2]
[339408304,1727591443153,-151.0,0.00015848,2]
[339408305,1727591443165,-170.162374,0.00015848,2]
[339408306,1727591443176,-170.162374,0.00015848,2]
[339408307,1727591443186,-683.406429,0.00015848,2]
[339408309,1727591443198,-683.406429,0.00015848,2]
[339408311,1727591443209,-151.0,0.00015848,2]
[339408313,1727591443219,-151.0,0.00015848,2]
[339408315,1727591443229,-151.0,0.00015848,2]
[339408317,1727591443241,-373.866433,0.00015848,2]
[339408318,1727591443251,-151.0,0.00015848,2]
[339408320,1727591443263,-151.0,0.00015848,2]
[339408322,1727591443275,-373.866433,0.00015848,2]
[339408324,1727591443288,-153.308977,0.00015848,2]
[339408325,1727591443298,-151.0,0.00015848,2]
[339408326,1727591443307,-582.520337,0.00015848,2]
[339408327,1727591443318,-582.520337,0.00015848,2]
[339408328,1727591443328,-847.825403,0.00015848,2]
[339408330,1727591443337,-847.825403,0.00015848,2]
[339408332,1727591443346,-151.0,0.00015848,2]
[339408334,1727591443355,-151.0,0.00015848,2]
[339408336,1727591443365,-151.0,0.00015848,2]
[339408338,1727591443374,-1554.559813,0.00015848,2]
[339408340,1727591443383,-151.0,0.00015848,2]
[339408341,1727591443392,-1554.559813,0.00015848,2]
[339408342,1727591443401,-2170.578063,0.00015848,2]
[339408343,1727591443411,-2170.578063,0.00015848,2]
[339408344,1727591443420,-535.864098,0.00015848,2]
[339408345,1727591443429,-535.864098,0.00015848,2]
[339408346,1727591443438,-336.751948,0.00015848,2]
[339408347,1727591443448,-336.751948,0.00015848,2]
[339408348,1727591443457,-163.901355,0.00015848,2]
[339408349,1727591443467,-163.901355,0.00015848,2]
[339408350,1727591443477,-242.800411,0.00015848,2]
[339408351,1727591443494,-242.800411,0.00015848,2]
[339408352,1727591443508,-3300.014757,0.00015848,2]
[339408353,1727591443518,-3300.014757,0.00015848,2]
[339408354,1727591443528,-1623.741257,0.00015848,2]
[339408355,1727591443538,-1623.741257,0.00015848,2]
[339408356,1727591443548,-151.0,0.00015848,2]
[339408357,1727591443557,-4095.092709,0.00015848,2]
[339408358,1727591443566,-1378.113569,0.00015848,2]
[339408359,1727591443576,-4095.092709,0.00015848,2]
[339408360,1727591443586,-151.0,0.00015848,2]
[339408361,1727591443595,-1378.113569,0.00015848,2]
[339408362,1727591443604,-151.0,0.00015848,2]
[339408363,1727591443613,-230.467734,0.00015848,2]
[339408364,1727591443624,-230.467734,0.00015848,2]
[339408365,1727591443634,-374.682797,0.00015848,2]
[339408366,1727591443643,-374.682797,0.00015848,2]
[339408367,1727591443653,-195.978247,0.00015848,2]
[339408368,1727591443662,-195.978247,0.00015848,2]
[339408369,1727591443672,-320.769279,0.00015848,2]
[339408370,1727591443681,-320.769279,0.00015848,2]
[339408371,1727591443691,-1716.531087,0.00015848,2]
[339408372,1727591443700,-1716.531087,0.00015848,2]
[339408373,1727591443711,-1393.463648,0.00015848,2]
[339408374,1727591443720,-509.941247,0.00015848,2]
[339408375,1727591443730,-1393.463648,0.00015848,2]
[339408376,1727591443739,-509.941247,0.00015848,2]
[339408377,1727591443748,-158.571029,0.00015848,2]
[339408378,1727591443758,-791.7249,0.00015848,2]
[339408379,1727591443767,-791.7249,0.00015848,2]
[339408380,1727591443776,-1005.66554967,0.0001585,2]
[339408381,1727591443785,-151.0,0.00015853,2]
[339408382,1727591443796,-244.689,0.0001586,2]
[339408383,1727591443805,-151.536942,0.00015862,2]
[339408384,1727591443815,-151.536942,0.00015862,2]
[339408385,1727591443824,-151.0,0.00015862,2]
[339408386,1727591443835,-151.0,0.00015862,2]
[339408387,1727591443844,-1000.0,0.00015874,2]
[339408388,1727591443854,-151.0,0.00015881,2]
[339408389,1727591443864,-151.0,0.00015881,2]
[339408390,1727591443874,-151.0,0.00015881,2]
[339408391,1727591443883,-151.0,0.00015881,2]
[339408392,1727591443893,-151.0,0.00015881,2]
[339408393,1727591443902,-355.147218,0.00015881,2]
[339408394,1727591443911,-355.147218,0.00015881,2]
[339408395,1727591443921,-151.0,0.00015881,2]
[339408396,1727591443931,-153.0,0.0001589,2]
[339408397,1727591443940,-153.0,0.0001589,2]
[339408398,1727591443950,-151.0,0.00015891,2]
[339408399,1727591443959,-151.0,0.00015891,2]
[339408400,1727591443968,-151.0,0.00015891,2]
[339408401,1727591443977,-155.893003,0.00015891,2]
[339408402,1727591443986,-151.0,0.00015891,2]
[339408403,1727591443995,-151.0,0.00015891,2]
[339408404,1727591444005,-151.0,0.00015891,2]
[339408405,1727591444014,-153.0,0.000159,2]
[339408406,1727591444023,-153.0,0.000159,2]
[339408407,1727591444123,-153.0,0.000159,2]
[339408408,1727591444132,-268.072894,0.000159,2]
[339408409,1727591444141,-468.77591766,0.00015903,2]
[339408410,1727591444151,-1000.0,0.00015904,2]
[339408411,1727591444160,-1000.0,0.00015906,2]
[339408412,1727591444169,-1000.0,0.00015908,2]
[339408413,1727591444179,-584.0,0.0001591,2]
[339408414,1727591444188,-151.0,0.00015917,2]
[339408415,1727591444198,-170.162374,0.00015917,2]
[339408416,1727591444207,-170.162374,0.00015917,2]
[339408417,1727591444216,-683.406429,0.00015917,2]
[339408418,1727591444225,-683.406429,0.00015917,2]
[339408419,1727591444235,-151.0,0.00015917,2]
[339408420,1727591444244,-151.0,0.00015917,2]
[339408421,1727591444254,-847.825403,0.00015917,2]
[339408422,1727591444263,-847.825403,0.00015917,2]
[339408423,1727591444272,-151.0,0.00015918,2]
[339408424,1727591444281,-151.0,0.00015918,2]
[339408425,1727591444290,-1000.0,0.00015918,2]
[339408426,1727591444300,-1000.0,0.00015925,2]
[339408427,1727591444309,-151.0,0.00015927,2]
[339408428,1727591444318,-151.0,0.00015927,2]
[339408429,1727591444328,-151.0,0.00015927,2]
[339408430,1727591444337,-151.0,0.00015927,2]
[339408431,1727591444347,-151.536942,0.00015927,2]
[339408432,1727591444357,-151.536942,0.00015927,2]
[339408433,1727591444369,-151.0,0.00015927,2]
[339408434,1727591444380,-151.0,0.00015927,2]
[339408435,1727591444391,-151.0,0.00015927,2]
[339408436,1727591444403,-151.0,0.00015928,2]
[339408437,1727591444413,-151.0,0.00015928,2]
[339408438,1727591444424,-206.708444,0.00015928,2]
[339408439,1727591444434,-355.147218,0.00015928,2]
[339408440,1727591444443,-355.147218,0.00015928,2]
[339408441,1727591444455,-151.536942,0.00015928,2]
[339408442,1727591444465,-151.536942,0.00015928,2]
[339408443,1727591444477,-151.0,0.00015928,2]
[339408444,1727591444494,-151.0,0.00015928,2]
[339408445,1727591444504,-151.0,0.00015928,2]
[339408446,1727591444514,-204.598504,0.00015928,2]
[339408447,1727591444524,-151.0,0.00015928,2]
[339408448,1727591444535,-151.0,0.00015928,2]
[339408449,1727591444546,-151.0,0.00015928,2]
[339408450,1727591444555,-342.880072,0.00015928,2]
[339408451,1727591444566,-342.880072,0.00015928,2]
[339408452,1727591444577,-342.880072,0.00015928,2]
[339408453,1727591444589,-342.880072,0.00015928,2]
[339408454,1727591444599,-151.0,0.00015928,2]
[339408455,1727591444611,-298.882331,0.00015928,2]
[339408456,1727591444624,-196.872921,0.00015928,2]
[339408457,1727591444636,-196.872921,0.00015928,2]
[339408458,1727591444646,-196.872921,0.00015928,2]
[339408459,1727591444655,-196.872921,0.00015928,2]
[339408460,1727591444665,-382.095382,0.00015928,2]
[339408461,1727591444674,-382.095382,0.00015928,2]
[339408462,1727591444684,-382.095382,0.00015928,2]
[339408463,1727591444693,-382.095382,0.00015928,2]
[339408464,1727591444703,-190.956157,0.00015928,2]
[339408465,1727591444713,-190.956157,0.00015928,2]
[339408466,1727591444723,-190.956157,0.00015928,2]
[339408467,1727591444734,-190.956157,0.00015928,2]
[339408468,1727591444745,-151.0,0.00015928,2]
[339408469,1727591444757,-151.0,0.00015928,2]
[339408470,1727591444767,-151.0,0.00015928,2]
[339408471,1727591444777,-151.0,0.00015928,2]
[339408472,1727591444788,-382.688678,0.00015928,2]
[339408473,1727591444799,-382.688678,0.00015928,2]
[339408474,1727591444820,-382.688678,0.00015928,2]
[339408475,1727591444838,-382.688678,0.00015928,2]
[339408476,1727591444859,-175.40141,0.00015928,2]
[339408477,1727591444880,-175.40141,0.00015928,2]
[339408478,1727591444899,-151.236066,0.00015928,2]
[339408479,1727591444920,-175.40141,0.00015928,2]
[339408480,1727591444938,-175.40141,0.00015928,2]
[339408481,1727591444955,-683.406429,0.00015928,2]
[339408482,1727591444976,-683.406429,0.00015928,2]
[339408483,1727591444998,-151.0,0.00015928,2]
[339408484,1727591445012,-373.866433,0.00015928,2]
[339408485,1727591445030,-151.0,0.00015928,2]
[339408486,1727591445048,-151.0,0.00015928,2]
[339408487,1727591445066,-373.866433,0.00015928,2]
[339408488,1727591445079,-151.0,0.00015928,2]
[339408489,1727591445097,-582.520337,0.00015928,2]
[339408490,1727591445113,-582.520337,0.00015928,2]
[339408491,1727591445129,-151.0,0.00015928,2]
[339408492,1727591445145,-151.0,0.00015928,2]
[339408493,1727591445163,-1554.559813,0.00015928,2]
[339408494,1727591445179,-151.0,0.00015928,2]
[339408495,1727591445196,-1554.559813,0.00015928,2]
[339408496,1727591445211,-2170.578063,0.00015928,2]
[339408497,1727591445226,-2170.578063,0.00015928,2]
[339408498,1727591445241,-535.864098,0.00015928,2]
[339408499,1727591445258,-535.864098,0.00015928,2]
[339408500,1727591445273,-336.751948,0.00015928,2]
[339408501,1727591445288,-336.751948,0.00015928,2]
[339408502,1727591445302,-163.901355,0.00015928,2]
[339408503,1727591445318,-163.901355,0.00015928,2]
[339408504,1727591445334,-242.800411,0.00015928,2]
[339408505,1727591445349,-242.800411,0.00015928,2]
[339408506,1727591445365,-3300.014757,0.00015928,2]
[339408507,1727591445380,-3300.014757,0.00015928,2]
[339408508,1727591445399,-1623.741257,0.00015928,2]
[339408509,1727591445415,-1623.741257,0.00015928,2]
[339408510,1727591445430,-151.0,0.00015928,2]
[339408511,1727591445447,-4095.092709,0.00015928,2]